{"text_format":"3","workbook":"xlsx","n_sheets":2,"sheets":["list","data"],"not_rendered":{"external_links":2},"read":"whole","date_system":"1900"}

{"sheet":"list","index":0,"n_rows":22,"n_cols":17,"rows_kept":22}
["№","СНИЛС","Фамлия","Имя","Отчество","Пол","Дата рождения","Участник с ОВЗ","Класс","Класс участия","Балл","Макс. Балл","Статус","Призер МЭ прошлого года","Учитель","Место работы учителя","Направление, вид практики  по технологии"]
[1,2,3,4,5,6,7,8,9,10,11,12,13,14,15,16,17]
[1,{"$f":"[1]КП2!$H$548","v":15817993114},{"$f":"'[2]Протокол ШЭ ВОШ по предмету'!B2","v":"Балякин"},{"$f":"'[2]Протокол ШЭ ВОШ по предмету'!C2","v":"Никита"},{"$f":"'[2]Протокол ШЭ ВОШ по предмету'!D2","v":"Николаевич"},{"$f":"'[2]Протокол ШЭ ВОШ по предмету'!F2","v":"м"},{"$f":"'[2]Протокол ШЭ ВОШ по предмету'!E2","v":"2006-03-28"},{"$f":"'[2]Протокол ШЭ ВОШ по предмету'!G2","v":"нет"},{"$f":"'[2]Протокол ШЭ ВОШ по предмету'!I2","v":11},{"$f":"'[2]Протокол ШЭ ВОШ по предмету'!I2","v":11},{"$f":"'[2]Протокол ШЭ ВОШ по предмету'!J2","v":62},100,"призер",null,{"$f":"'[2]Протокол ШЭ ВОШ по предмету'!N2","v":"Валеев Эльмир Альбертович"},{"$f":"'[2]Протокол ШЭ ВОШ по предмету'!O2","v":"МБОУ «КСОШ №2»"}]
[2,{"$f":"[1]КП2!$H$455","v":16193004848},{"$f":"'[2]Протокол ШЭ ВОШ по предмету'!B3","v":"Решетников"},{"$f":"'[2]Протокол ШЭ ВОШ по предмету'!C3","v":"Евгений"},{"$f":"'[2]Протокол ШЭ ВОШ по предмету'!D3","v":"Сергеевич"},{"$f":"'[2]Протокол ШЭ ВОШ по предмету'!F3","v":"м"},{"$f":"'[2]Протокол ШЭ ВОШ по предмету'!E3","v":"2009-06-20"},{"$f":"'[2]Протокол ШЭ ВОШ по предмету'!G3","v":"нет"},{"$f":"'[2]Протокол ШЭ ВОШ по предмету'!I3","v":8},{"$f":"'[2]Протокол ШЭ ВОШ по предмету'!I3","v":8},{"$f":"'[2]Протокол ШЭ ВОШ по предмету'!J3","v":70},{"$f":"$L$3","v":100},"победитель",null,{"$f":"'[2]Протокол ШЭ ВОШ по предмету'!N3","v":"Валеев Эльмир Альбертович"},{"$f":"'[2]Протокол ШЭ ВОШ по предмету'!O3","v":"МБОУ «КСОШ №2»"}]
[3,{"$f":"[1]КП2!$H$424","v":19062425967},{"$f":"'[2]Протокол ШЭ ВОШ по предмету'!B4","v":"Зайцев"},{"$f":"'[2]Протокол ШЭ ВОШ по предмету'!C4","v":"Максим"},{"$f":"'[2]Протокол ШЭ ВОШ по предмету'!D4","v":"Владимирович"},{"$f":"'[2]Протокол ШЭ ВОШ по предмету'!F4","v":"м"},{"$f":"'[2]Протокол ШЭ ВОШ по предмету'!E4","v":"2009-04-17"},{"$f":"'[2]Протокол ШЭ ВОШ по предмету'!G4","v":"нет"},{"$f":"'[2]Протокол ШЭ ВОШ по предмету'!I4","v":8},{"$f":"'[2]Протокол ШЭ ВОШ по предмету'!I4","v":8},{"$f":"'[2]Протокол ШЭ ВОШ по предмету'!J4","v":64},100,"призер",null,{"$f":"'[2]Протокол ШЭ ВОШ по предмету'!N4","v":"Валеев Эльмир Альбертович"},{"$f":"'[2]Протокол ШЭ ВОШ по предмету'!O4","v":"МБОУ «КСОШ №2»"}]
[4,{"$f":"[1]КП2!$H$433","v":17834080284},{"$f":"'[2]Протокол ШЭ ВОШ по предмету'!B5","v":"Рыдаев"},{"$f":"'[2]Протокол ШЭ ВОШ по предмету'!C5","v":"Данил"},{"$f":"'[2]Протокол ШЭ ВОШ по предмету'!D5","v":"Максимович"},{"$f":"'[2]Протокол ШЭ ВОШ по предмету'!F5","v":"м"},{"$f":"'[2]Протокол ШЭ ВОШ по предмету'!E5","v":"2008-12-24"},{"$f":"'[2]Протокол ШЭ ВОШ по предмету'!G5","v":"нет"},{"$f":"'[2]Протокол ШЭ ВОШ по предмету'!I5","v":8},{"$f":"'[2]Протокол ШЭ ВОШ по предмету'!I5","v":8},{"$f":"'[2]Протокол ШЭ ВОШ по предмету'!J5","v":51},100,"участник",null,{"$f":"'[2]Протокол ШЭ ВОШ по предмету'!N5","v":"Валеев Эльмир Альбертович"},{"$f":"'[2]Протокол ШЭ ВОШ по предмету'!O5","v":"МБОУ «КСОШ №2»"}]
[5,{"$f":"[1]КП2!$H$344","v":16089195898},{"$f":"'[2]Протокол ШЭ ВОШ по предмету'!B6","v":"Кармачева"},{"$f":"'[2]Протокол ШЭ ВОШ по предмету'!C6","v":"Надежда"},{"$f":"'[2]Протокол ШЭ ВОШ по предмету'!D6","v":"Павловна"},{"$f":"'[2]Протокол ШЭ ВОШ по предмету'!F6","v":"ж"},{"$f":"'[2]Протокол ШЭ ВОШ по предмету'!E6","v":"2010-06-20"},{"$f":"'[2]Протокол ШЭ ВОШ по предмету'!G6","v":"нет"},{"$f":"'[2]Протокол ШЭ ВОШ по предмету'!I6","v":7},{"$f":"'[2]Протокол ШЭ ВОШ по предмету'!I6","v":7},{"$f":"'[2]Протокол ШЭ ВОШ по предмету'!J6","v":57},100,"призер",null,{"$f":"'[2]Протокол ШЭ ВОШ по предмету'!N6","v":"Зубарев Александр Петрович"},{"$f":"'[2]Протокол ШЭ ВОШ по предмету'!O6","v":"МБОУ «КСОШ №2»"}]
[6,{"$f":"[1]КП2!$H$339","v":16130119208},{"$f":"'[2]Протокол ШЭ ВОШ по предмету'!B7","v":"Ведерников"},{"$f":"'[2]Протокол ШЭ ВОШ по предмету'!C7","v":"Павел"},{"$f":"'[2]Протокол ШЭ ВОШ по предмету'!D7","v":"Сергеевич"},{"$f":"'[2]Протокол ШЭ ВОШ по предмету'!F7","v":"м"},{"$f":"'[2]Протокол ШЭ ВОШ по предмету'!E7","v":"2010-07-09"},{"$f":"'[2]Протокол ШЭ ВОШ по предмету'!G7","v":"нет"},{"$f":"'[2]Протокол ШЭ ВОШ по предмету'!I7","v":7},{"$f":"'[2]Протокол ШЭ ВОШ по предмету'!I7","v":7},{"$f":"'[2]Протокол ШЭ ВОШ по предмету'!J7","v":58},100,"призер",null,{"$f":"'[2]Протокол ШЭ ВОШ по предмету'!N7","v":"Зубарев Александр Петрович"},{"$f":"'[2]Протокол ШЭ ВОШ по предмету'!O7","v":"МБОУ «КСОШ №2»"}]
[7,{"$f":"[1]КП2!$H$441","v":15449424681},{"$f":"'[2]Протокол ШЭ ВОШ по предмету'!B8","v":"Абызов"},{"$f":"'[2]Протокол ШЭ ВОШ по предмету'!C8","v":"Артем"},{"$f":"'[2]Протокол ШЭ ВОШ по предмету'!D8","v":"Алексеевич"},{"$f":"'[2]Протокол ШЭ ВОШ по предмету'!F8","v":"м"},{"$f":"'[2]Протокол ШЭ ВОШ по предмету'!E8","v":"2009-03-30"},{"$f":"'[2]Протокол ШЭ ВОШ по предмету'!G8","v":"нет"},{"$f":"'[2]Протокол ШЭ ВОШ по предмету'!I8","v":8},{"$f":"'[2]Протокол ШЭ ВОШ по предмету'!I8","v":8},{"$f":"'[2]Протокол ШЭ ВОШ по предмету'!J8","v":59},100,"участник",null,{"$f":"'[2]Протокол ШЭ ВОШ по предмету'!N8","v":"Зубарев Александр Петрович"},{"$f":"'[2]Протокол ШЭ ВОШ по предмету'!O8","v":"МБОУ «КСОШ №2»"}]
[8,{"$f":"[1]КП2!$H$453","v":15503312825},{"$f":"'[2]Протокол ШЭ ВОШ по предмету'!B9","v":"Моторина"},{"$f":"'[2]Протокол ШЭ ВОШ по предмету'!C9","v":"Королина"},{"$f":"'[2]Протокол ШЭ ВОШ по предмету'!D9","v":"Денисовна"},{"$f":"'[2]Протокол ШЭ ВОШ по предмету'!F9","v":"ж"},{"$f":"'[2]Протокол ШЭ ВОШ по предмету'!E9","v":"2009-05-21"},{"$f":"'[2]Протокол ШЭ ВОШ по предмету'!G9","v":"нет"},{"$f":"'[2]Протокол ШЭ ВОШ по предмету'!I9","v":8},{"$f":"'[2]Протокол ШЭ ВОШ по предмету'!I9","v":8},{"$f":"'[2]Протокол ШЭ ВОШ по предмету'!J9","v":60},100,"победитель",null,{"$f":"'[2]Протокол ШЭ ВОШ по предмету'!N9","v":"Зубарев Александр Петрович"},{"$f":"'[2]Протокол ШЭ ВОШ по предмету'!O9","v":"МБОУ «КСОШ №2»"}]
[9,{"$f":"[1]КП2!$H$494","v":16089195797},{"$f":"'[2]Протокол ШЭ ВОШ по предмету'!B10","v":"Кармачев"},{"$f":"'[2]Протокол ШЭ ВОШ по предмету'!C10","v":"Владимир"},{"$f":"'[2]Протокол ШЭ ВОШ по предмету'!D10","v":"Павлович"},{"$f":"'[2]Протокол ШЭ ВОШ по предмету'!F10","v":"м"},{"$f":"'[2]Протокол ШЭ ВОШ по предмету'!E10","v":"2008-07-02"},{"$f":"'[2]Протокол ШЭ ВОШ по предмету'!G10","v":"нет"},{"$f":"'[2]Протокол ШЭ ВОШ по предмету'!I10","v":9},{"$f":"'[2]Протокол ШЭ ВОШ по предмету'!I10","v":9},{"$f":"'[2]Протокол ШЭ ВОШ по предмету'!J10","v":58},100,"призер",null,{"$f":"'[2]Протокол ШЭ ВОШ по предмету'!N10","v":"Зубарев Александр Петрович"},{"$f":"'[2]Протокол ШЭ ВОШ по предмету'!O10","v":"МБОУ «КСОШ №2»"}]
[10,{"$f":"[1]КП2!$H$495","v":14937589421},{"$f":"'[2]Протокол ШЭ ВОШ по предмету'!B11","v":"Косс"},{"$f":"'[2]Протокол ШЭ ВОШ по предмету'!C11","v":"Маргарита"},{"$f":"'[2]Протокол ШЭ ВОШ по предмету'!D11","v":"Сргеевна"},{"$f":"'[2]Протокол ШЭ ВОШ по предмету'!F11","v":"ж"},{"$f":"'[2]Протокол ШЭ ВОШ по предмету'!E11","v":"2008-01-14"},{"$f":"'[2]Протокол ШЭ ВОШ по предмету'!G11","v":"нет"},{"$f":"'[2]Протокол ШЭ ВОШ по предмету'!I11","v":9},{"$f":"'[2]Протокол ШЭ ВОШ по предмету'!I11","v":9},{"$f":"'[2]Протокол ШЭ ВОШ по предмету'!J11","v":61},100,"победитель",null,{"$f":"'[2]Протокол ШЭ ВОШ по предмету'!N11","v":"Валеев Эльмир Альбертович"},{"$f":"'[2]Протокол ШЭ ВОШ по предмету'!O11","v":"МБОУ «КСОШ №2»"}]
[11,{"$f":"[1]КП2!$H$549","v":15992334710},{"$f":"'[2]Протокол ШЭ ВОШ по предмету'!B12","v":"Болтнев"},{"$f":"'[2]Протокол ШЭ ВОШ по предмету'!C12","v":"Алексей"},{"$f":"'[2]Протокол ШЭ ВОШ по предмету'!D12","v":"Андреевич"},{"$f":"'[2]Протокол ШЭ ВОШ по предмету'!F12","v":"м"},{"$f":"'[2]Протокол ШЭ ВОШ по предмету'!E12","v":"2006-04-03"},{"$f":"'[2]Протокол ШЭ ВОШ по предмету'!G12","v":"нет"},{"$f":"'[2]Протокол ШЭ ВОШ по предмету'!I12","v":11},{"$f":"'[2]Протокол ШЭ ВОШ по предмету'!I12","v":11},{"$f":"'[2]Протокол ШЭ ВОШ по предмету'!J12","v":75},100,"победитель",null,{"$f":"'[2]Протокол ШЭ ВОШ по предмету'!N12","v":"Валеев Эльмир Альбертович"},{"$f":"'[2]Протокол ШЭ ВОШ по предмету'!O12","v":"МБОУ «КСОШ №2»"}]
[12,{"$f":"[1]КП2!$H$553","v":15693372803},{"$f":"'[2]Протокол ШЭ ВОШ по предмету'!B13","v":"Казаков"},{"$f":"'[2]Протокол ШЭ ВОШ по предмету'!C13","v":"Никита"},{"$f":"'[2]Протокол ШЭ ВОШ по предмету'!D13","v":"Евгеньевич"},{"$f":"'[2]Протокол ШЭ ВОШ по предмету'!F13","v":"м"},{"$f":"'[2]Протокол ШЭ ВОШ по предмету'!E13","v":"2006-07-04"},{"$f":"'[2]Протокол ШЭ ВОШ по предмету'!G13","v":"нет"},{"$f":"'[2]Протокол ШЭ ВОШ по предмету'!I13","v":11},{"$f":"'[2]Протокол ШЭ ВОШ по предмету'!I13","v":11},{"$f":"'[2]Протокол ШЭ ВОШ по предмету'!J13","v":56},100,"участник",null,{"$f":"'[2]Протокол ШЭ ВОШ по предмету'!N13","v":"Зубарев Александр Петрович"},{"$f":"'[2]Протокол ШЭ ВОШ по предмету'!O13","v":"МБОУ «КСОШ №2»"}]
[13,{"$f":"[1]КП2!$H$551","v":15730403037},{"$f":"'[2]Протокол ШЭ ВОШ по предмету'!B14","v":"Евстифеева"},{"$f":"'[2]Протокол ШЭ ВОШ по предмету'!C14","v":"Ангелина"},{"$f":"'[2]Протокол ШЭ ВОШ по предмету'!D14","v":"Денисовна"},{"$f":"'[2]Протокол ШЭ ВОШ по предмету'!F14","v":"ж"},{"$f":"'[2]Протокол ШЭ ВОШ по предмету'!E14","v":"2006-06-29"},{"$f":"'[2]Протокол ШЭ ВОШ по предмету'!G14","v":"нет"},{"$f":"'[2]Протокол ШЭ ВОШ по предмету'!I14","v":11},{"$f":"'[2]Протокол ШЭ ВОШ по предмету'!I14","v":11},{"$f":"'[2]Протокол ШЭ ВОШ по предмету'!J14","v":66},100,"победитель",null,{"$f":"'[2]Протокол ШЭ ВОШ по предмету'!N14","v":"Зубарев Александр Петрович"},{"$f":"'[2]Протокол ШЭ ВОШ по предмету'!O14","v":"МБОУ «КСОШ №2»"}]
[14,{"$f":"[1]КП2!$H$377","v":16365282074},{"$f":"'[2]Протокол ШЭ ВОШ по предмету'!B15","v":"Николаев"},{"$f":"'[2]Протокол ШЭ ВОШ по предмету'!C15","v":"Ярослав"},{"$f":"'[2]Протокол ШЭ ВОШ по предмету'!D15","v":"Андреевич"},{"$f":"'[2]Протокол ШЭ ВОШ по предмету'!F15","v":"м"},{"$f":"'[2]Протокол ШЭ ВОШ по предмету'!E15","v":"2010-09-16"},{"$f":"'[2]Протокол ШЭ ВОШ по предмету'!G15","v":"нет"},{"$f":"'[2]Протокол ШЭ ВОШ по предмету'!I15","v":7},{"$f":"'[2]Протокол ШЭ ВОШ по предмету'!I15","v":7},{"$f":"'[2]Протокол ШЭ ВОШ по предмету'!J15","v":46},100,"участник",null,{"$f":"'[2]Протокол ШЭ ВОШ по предмету'!N15","v":"Зубарев Александр Петрович"},{"$f":"'[2]Протокол ШЭ ВОШ по предмету'!O15","v":"МБОУ «КСОШ №2»"}]
[15,{"$f":"[1]КП2!$H$375","v":18520477575},{"$f":"'[2]Протокол ШЭ ВОШ по предмету'!B16","v":"Мухтасимова"},{"$f":"'[2]Протокол ШЭ ВОШ по предмету'!C16","v":"Лейла"},{"$f":"'[2]Протокол ШЭ ВОШ по предмету'!D16","v":"Ринатовна"},{"$f":"'[2]Протокол ШЭ ВОШ по предмету'!F16","v":"ж"},{"$f":"'[2]Протокол ШЭ ВОШ по предмету'!E16","v":"2010-02-07"},{"$f":"'[2]Протокол ШЭ ВОШ по предмету'!G16","v":"нет"},{"$f":"'[2]Протокол ШЭ ВОШ по предмету'!I16","v":7},{"$f":"'[2]Протокол ШЭ ВОШ по предмету'!I16","v":7},{"$f":"'[2]Протокол ШЭ ВОШ по предмету'!J16","v":48},100,"призер",null,{"$f":"'[2]Протокол ШЭ ВОШ по предмету'!N16","v":"Васин Сергей Николаевич"},{"$f":"'[2]Протокол ШЭ ВОШ по предмету'!O16","v":"МБОУ «КСОШ №2»"}]
[16,{"$f":"[1]КП2!$H$526","v":16016082424},{"$f":"'[2]Протокол ШЭ ВОШ по предмету'!B18","v":"Хафизов"},{"$f":"'[2]Протокол ШЭ ВОШ по предмету'!C18","v":"Данил"},{"$f":"'[2]Протокол ШЭ ВОШ по предмету'!D18","v":"Денисович"},{"$f":"'[2]Протокол ШЭ ВОШ по предмету'!F18","v":"м"},{"$f":"'[2]Протокол ШЭ ВОШ по предмету'!E18","v":"2007-12-07"},{"$f":"'[2]Протокол ШЭ ВОШ по предмету'!G18","v":"нет"},{"$f":"'[2]Протокол ШЭ ВОШ по предмету'!I18","v":9},{"$f":"'[2]Протокол ШЭ ВОШ по предмету'!I18","v":9},{"$f":"'[2]Протокол ШЭ ВОШ по предмету'!J18","v":66},100,"победитель",null,{"$f":"'[2]Протокол ШЭ ВОШ по предмету'!N18","v":"Васин Сергей Николаевич"},{"$f":"'[2]Протокол ШЭ ВОШ по предмету'!O18","v":"МБОУ «КСОШ №2»"}]
[17,{"$f":"[1]КП2!$H$288","v":16603945071},{"$f":"'[2]Протокол ШЭ ВОШ по предмету'!B19","v":"Мамаев"},{"$f":"'[2]Протокол ШЭ ВОШ по предмету'!C19","v":"Матвей"},{"$f":"'[2]Протокол ШЭ ВОШ по предмету'!D19","v":"Павлович"},{"$f":"'[2]Протокол ШЭ ВОШ по предмету'!F19","v":"м"},{"$f":"'[2]Протокол ШЭ ВОШ по предмету'!E19","v":"2011-04-29"},{"$f":"'[2]Протокол ШЭ ВОШ по предмету'!G19","v":"нет"},{"$f":"'[2]Протокол ШЭ ВОШ по предмету'!I19","v":6},{"$f":"'[2]Протокол ШЭ ВОШ по предмету'!I19","v":6},{"$f":"'[2]Протокол ШЭ ВОШ по предмету'!J19","v":52},100,"участник",null,{"$f":"'[2]Протокол ШЭ ВОШ по предмету'!N19","v":"Васин Сергей Николаевич"},{"$f":"'[2]Протокол ШЭ ВОШ по предмету'!O19","v":"МБОУ «КСОШ №2»"}]
[18,{"$f":"[1]КП2!$H$298","v":16865184109},{"$f":"'[2]Протокол ШЭ ВОШ по предмету'!B20","v":"Сабиров"},{"$f":"'[2]Протокол ШЭ ВОШ по предмету'!C20","v":"Амир"},{"$f":"'[2]Протокол ШЭ ВОШ по предмету'!D20","v":"Василевич"},{"$f":"'[2]Протокол ШЭ ВОШ по предмету'!F20","v":"м"},{"$f":"'[2]Протокол ШЭ ВОШ по предмету'!E20","v":"2011-10-02"},{"$f":"'[2]Протокол ШЭ ВОШ по предмету'!G20","v":"нет"},{"$f":"'[2]Протокол ШЭ ВОШ по предмету'!I20","v":6},{"$f":"'[2]Протокол ШЭ ВОШ по предмету'!I20","v":6},{"$f":"'[2]Протокол ШЭ ВОШ по предмету'!J20","v":62},100,"победитель",null,{"$f":"'[2]Протокол ШЭ ВОШ по предмету'!N20","v":"Валеев Эльмир Альбертович"},{"$f":"'[2]Протокол ШЭ ВОШ по предмету'!O20","v":"МБОУ «КСОШ №2»"}]
[19,{"$f":"[1]КП2!$H$301","v":16717208676},{"$f":"'[2]Протокол ШЭ ВОШ по предмету'!B21","v":"Уразайкина"},{"$f":"'[2]Протокол ШЭ ВОШ по предмету'!C21","v":"Яна"},{"$f":"'[2]Протокол ШЭ ВОШ по предмету'!D21","v":"Николаевна"},{"$f":"'[2]Протокол ШЭ ВОШ по предмету'!F21","v":"ж"},{"$f":"'[2]Протокол ШЭ ВОШ по предмету'!E21","v":"2011-06-20"},{"$f":"'[2]Протокол ШЭ ВОШ по предмету'!G21","v":"нет"},{"$f":"'[2]Протокол ШЭ ВОШ по предмету'!I21","v":6},{"$f":"'[2]Протокол ШЭ ВОШ по предмету'!I21","v":6},{"$f":"'[2]Протокол ШЭ ВОШ по предмету'!J21","v":64},100,"победитель",null,{"$f":"'[2]Протокол ШЭ ВОШ по предмету'!N21","v":"Валеев Эльмир Альбертович"},{"$f":"'[2]Протокол ШЭ ВОШ по предмету'!O21","v":"МБОУ «КСОШ №2»"}]
[20,{"$f":"[1]КП2!$H$562","v":16603945475},{"$f":"'[2]Протокол ШЭ ВОШ по предмету'!B22","v":"Краюхина"},{"$f":"'[2]Протокол ШЭ ВОШ по предмету'!C22","v":"Александра"},{"$f":"'[2]Протокол ШЭ ВОШ по предмету'!D22","v":"Евгеньевна"},{"$f":"'[2]Протокол ШЭ ВОШ по предмету'!F22","v":"ж"},{"$f":"'[2]Протокол ШЭ ВОШ по предмету'!E22","v":"2011-04-19"},{"$f":"'[2]Протокол ШЭ ВОШ по предмету'!G22","v":"нет"},{"$f":"'[2]Протокол ШЭ ВОШ по предмету'!I22","v":6},{"$f":"'[2]Протокол ШЭ ВОШ по предмету'!I22","v":6},{"$f":"'[2]Протокол ШЭ ВОШ по предмету'!J22","v":58},{"$f":"$L$3","v":100},"призер",null,{"$f":"'[2]Протокол ШЭ ВОШ по предмету'!N22","v":"Валеев Эльмир Альбертович"},{"$f":"'[2]Протокол ШЭ ВОШ по предмету'!O22","v":"МБОУ «КСОШ №2»"}]

{"sheet":"data","index":1,"n_rows":25,"n_cols":3,"rows_kept":25,"hidden":true}
[]
["Техника, технология и техническое творчество .  Ручная обработка древесины"]
["Техника, технология и техническое творчество .  Ручная обработка металла"]
["Техника, технология и техническое творчество .  Механическая обработка древесины"]
["Техника, технология и техническое творчество .  Механическая обработка металла"]
["Техника, технология и техническое творчество .  Электротехника"]
["Техника, технология и техническое творчество .  Робототехника"]
["Техника, технология и техническое творчество .  3d - моделирование и печать"]
["Техника, технология и техническое творчество .  Обработка материалов на лазерно-гравировальной машине"]
["Техника, технология и техническое творчество .  Промышленный дизайн"]
["Культура дома, дизайн и технологии .  Обработка швейного изделия или узла + моделирование швейных изделий"]
["Культура дома, дизайн и технологии .  Обработка швейного изделия или узла + моделирование швейных изделий с использованием графических редакторов"]
["Культура дома, дизайн и технологии .  Обработка швейного изделия или узла на швейно-вышивальном оборудовании + моделирование швейных изделий"]
["Культура дома, дизайн и технологии .  Обработка швейного изделия или узла на швейно-вышивальном оборудовании + моделирование швейных изделий с использованием графических редакторов"]
["Культура дома, дизайн и технологии .  Робототехника"]
["Культура дома, дизайн и технологии .  3d - моделирование и печать"]
["Культура дома, дизайн и технологии .  Обработка материалов на лазерно-гравировальной машине"]
["Культура дома, дизайн и технологии .  Промышленный дизайн"]
["Роботехника .  "]
["Информационная безопасность ."]
[]
[]
["участник"]
["призер",null,"да"]
["победитель"]